fUST/lending_fUST_20250212
["ID","MTS","AMOUNT","RATE_DAILY","PERIOD"]
[352842013,1739359843072,-708.54,0.00013567,2]
[352842014,1739359843081,-500.0,0.0001359,2]
[352842015,1739359843091,-400.2857395,0.00013599,2]
[352842016,1739359843101,-197.44345761,0.00013599,2]
[352842017,1739359843110,-238.02488985,0.00013599,2]
[352842018,1739359843120,-484.85419285,0.00013637,2]
[352842019,1739359843130,-500.23501456,0.00013698,2]
[352842020,1739359843140,-1000.0,0.00013698,2]
[352842021,1739359843149,-1084.16513233,0.00013698,2]
[352842022,1739359843159,-1570.74257,0.00013699,2]
[352842023,1739359843168,-785.347912,0.00013699,2]
[352842024,1739359843178,-500.0,0.00013699,2]
[352842025,1739359843189,-500.0,0.00013699,2]
[352842026,1739359843200,-500.0,0.00013699,2]
[352842027,1739359843210,-500.0,0.00013699,2]
[352842028,1739359843221,-500.0,0.00013699,2]
[352842029,1739359843230,-500.0,0.00013699,2]
[352842030,1739359843240,-500.0,0.00013699,2]
[352842031,1739359843249,-500.0,0.00013699,2]
[352842032,1739359843259,-500.0,0.00013699,2]
[352842033,1739359843268,-500.0,0.00013699,2]
[352842034,1739359843277,-500.0,0.00013699,2]
[352842035,1739359843286,-270.96689458,0.00013699,2]
[352842036,1739359843295,-500.0,0.00013699,2]
[352842037,1739359843303,-500.0,0.00013699,2]
[352842038,1739359843313,-500.0,0.00013699,2]
[352842039,1739359843322,-500.0,0.00013699,2]
[352842040,1739359843331,-500.0,0.00013699,2]
[352842041,1739359843341,-500.0,0.00013699,2]
[352842042,1739359843351,-500.0,0.00013699,2]
[352842043,1739359843360,-500.0,0.00013699,2]
[352842044,1739359843372,-500.0,0.00013699,2]
[352842045,1739359843383,-500.0,0.00013699,2]
[352842046,1739359843497,-500.0,0.00013699,2]
[352842047,1739359843509,-500.0,0.00013699,2]
[352842048,1739359843518,-500.0,0.00013699,2]
[352842049,1739359843529,-500.0,0.00013699,2]
[352842050,1739359843538,-500.0,0.00013699,2]
[352842051,1739359843548,-500.0,0.00013699,2]
[352842052,1739359843559,-500.0,0.00013699,2]
[352842053,1739359843570,-500.0,0.00013699,2]
[352842054,1739359843582,-500.0,0.00013699,2]
[352842055,1739359843593,-500.0,0.00013699,2]
[352842057,1739359843603,-500.0,0.00013699,2]
[352842058,1739359843612,-500.0,0.00013699,2]
[352842059,1739359843622,-500.0,0.00013699,2]
[352842060,1739359843633,-500.0,0.00013699,2]
[352842061,1739359843642,-500.0,0.00013699,2]
[352842062,1739359843652,-500.0,0.00013699,2]
[352842063,1739359843662,-500.0,0.00013699,2]
[352842064,1739359843671,-500.0,0.00013699,2]
[352842065,1739359843682,-500.0,0.00013699,2]
[352842066,1739359843693,-500.0,0.00013699,2]
[352842067,1739359843703,-500.0,0.00013699,2]
[352842068,1739359843712,-500.0,0.00013703,2]
[352842069,1739359843721,-1146.87,0.00013703,2]
[352842070,1739359843731,-833.36,0.00013703,2]
[352842071,1739359843740,-980.08,0.00013703,2]
[352842072,1739359843749,-208.85816761,0.00013703,2]
[352842073,1739359843758,-729.46,0.00013704,2]
[352842074,1739359843767,-3622.31,0.00013704,2]
[352842075,1739359843778,-8793.46,0.00013704,2]
[352842076,1739359843787,-708.54,0.00013704,2]
[352842077,1739359843796,-317.0,0.00013724,2]
[352842078,1739359843806,-151.01526129,0.00013748,2]
[352842079,1739359843816,-313.34384327,0.00013786,2]
[352842080,1739359843825,-177.80000001,0.0001384,2]
[352842081,1739359843836,-1146.87,0.0001384,2]
[352842082,1739359843846,-833.36,0.0001384,2]
[352842083,1739359843856,-980.08,0.0001384,2]
[352842085,1739359843866,-729.46,0.00013841,2]
[352842086,1739359843876,-3622.31,0.00013841,2]
[352842087,1739359843885,-8793.46,0.00013841,2]
[352842088,1739359843894,-708.54,0.00013841,2]
[352842089,1739359843904,-153.0,0.00013945,2]
[352842090,1739359843914,-153.0,0.00013947,2]
[352842091,1739359843923,-153.0,0.00013947,2]
[352842092,1739359843932,-1146.87,0.00013977,2]
[352842093,1739359843941,-833.36,0.00013977,2]
[352842094,1739359843951,-980.08,0.00013977,2]
[352842095,1739359843959,-729.46,0.00013978,2]
[352842096,1739359843969,-3622.31,0.00013978,2]
[352842097,1739359843979,-8793.46,0.00013978,2]
[352842098,1739359843988,-708.54,0.00013978,2]
[352842099,1739359843998,-252.802,0.00013986,2]
[352842100,1739359844009,-1147.027603,0.00014114,2]
[352842101,1739359844020,-833.39928305,0.00014114,2]
[352842102,1739359844029,-980.09,0.00014114,2]
[352842103,1739359844039,-729.68549507,0.00014115,2]
[352842104,1739359844051,-3622.36659106,0.00014115,2]
[352842105,1739359844060,-8793.59776913,0.00014115,2]
[352842106,1739359844070,-708.54,0.00014115,2]
[352842107,1739359844080,-619.02655504,0.00014316,2]
[352842108,1739359844089,-619.02655504,0.00014416,2]
[352842109,1739359844098,-433.45,0.000145,2]
[352842110,1739359844108,-500.0,0.000145,2]
[352842111,1739359844117,-500.0,0.000145,2]
[352842112,1739359844128,-500.0,0.000145,2]
[352842113,1739359844137,-500.0,0.000145,2]
[352842114,1739359844146,-162516.55364351,0.000145,2]
[352842115,1739359844165,-4737.41427322,0.000145,2]
[352842116,1739359844176,-619.02655504,0.00014516,2]
[352842117,1739359844186,-313.34384327,0.00014578,2]
[352842118,1739359844195,-619.02655504,0.00014616,2]
[352842119,1739359844205,-5902.37700633,0.00014698,2]
[352842120,1739359844215,-151.0,0.000147,2]
[352842121,1739359844225,-619.02655504,0.00014716,2]
[352842122,1739359844235,-619.02655504,0.00014816,2]
[352842123,1739359844244,-207.5976065,0.00014849,2]
[352842124,1739359844254,-31661.460027,0.000149,2]
[352842125,1739359844263,-606.94565814,0.000149,2]
[352842127,1739359844273,-187.07472736,0.000149,2]
[352842128,1739359844283,-175.387508,0.000149,2]
[352842129,1739359844292,-175.387508,0.000149,2]
[352842130,1739359844302,-151.0,0.000149,2]
[352842131,1739359844311,-151.0,0.000149,2]
[352842132,1739359844321,-151.0,0.000149,2]
[352842133,1739359844331,-151.0,0.000149,2]
[352842134,1739359844341,-619.02655504,0.00014916,2]
[352842135,1739359844350,-1534.7425786,0.0001494,2]
[352842136,1739359844359,-106865.30660625,0.0001497,2]
[352842137,1739359844371,-500.0,0.00014973,2]
[352842138,1739359844383,-500.0,0.00014973,2]
[352842139,1739359844392,-500.0,0.00014973,2]
[352842140,1739359844401,-500.0,0.00014973,2]
[352842141,1739359844411,-500.0,0.00014973,2]
[352842142,1739359844421,-500.0,0.00014973,2]
[352842143,1739359844430,-500.0,0.00014973,2]
[352842144,1739359844439,-4341.35177057,0.00015,5]
[352842145,1739359844450,-28427.47811156,0.00015,2]
[352842146,1739359844466,-10422.33377954,0.00015,2]
[352842147,1739359844541,-6966.36333541,0.00015,2]
[352842148,1739359844550,-815.89865181,0.00015,2]
[352842149,1739359844559,-37659.12769728,0.00015,2]
[352842150,1739359844569,-17751.58065224,0.00015,4]
[352842151,1739359844579,-25891.05745057,0.00015,2]
[352842152,1739359844590,-732.26371174,0.00015,2]
[352842153,1739359844609,-494.18,0.00015,2]
[352842157,1739359846566,-1534.7425786,0.00014936,2]
[352842158,1739359846576,-32256.67624513,0.00015,2]
[352842159,1739359846587,-13307.44809872,0.00015,2]
[352842160,1739359846619,-697.86649659,0.00015,2]
[352842168,1739360756118,-362.89721193,9.325e-05,2]
[352842169,1739360828138,-212.310724,9.325e-05,2]
[352842170,1739360851106,-4424.79206407,9.325e-05,2]
[352842171,1739360851128,-1391.43406426,9.419e-05,2]
[352842172,1739360851151,-197.44345761,9.904e-05,2]
[352842173,1739360851173,-280.62380415,0.00010005,2]
[352842174,1739360851209,-638.31062935,0.00010107,2]
[352842175,1739360851232,-238.0485088,0.00010207,2]
[352842176,1739360851256,-300.0,0.00010467,2]
[352842177,1739360851279,-858.0471336,0.00010468,2]
[352842178,1739360948140,-916.97535838,0.00010363,2]
[352842179,1739360948162,-6016.80403192,0.00010467,2]
[352842180,1739360948184,-1421.62959123,0.00010528,2]
[352842181,1739360948207,-191.1722295,0.00010685,2]
[352842182,1739360950130,-208.8277705,0.00010685,2]
[352842183,1739360950158,-13620.0288216,0.00010961,2]
[352842184,1739360950186,-500.0,0.00010961,2]
[352842185,1739360950213,-500.0,0.00010961,2]
[352842186,1739360950238,-500.0,0.00010961,2]
[352842187,1739360950263,-500.0,0.00010961,2]
[352842188,1739360950291,-500.0,0.00010961,2]
[352842189,1739360950317,-500.0,0.00010961,2]
[352842190,1739360950342,-500.0,0.00010961,2]
[352842191,1739360950369,-560.5,0.00010961,2]
[352842192,1739360950395,-500.0,0.00010961,2]
[352842193,1739360950422,-500.0,0.00010961,2]
[352842194,1739360950450,-1211.58,0.00010961,2]
[352842195,1739360950475,-500.0,0.00010961,2]
[352842196,1739360950502,-500.0,0.00010961,2]
[352842197,1739360950529,-500.0,0.00010961,2]
[352842198,1739360950558,-500.0,0.00010961,2]
[352842199,1739360950587,-778.94,0.00010961,2]
[352842200,1739360950611,-500.0,0.00010961,2]
[352842201,1739360950635,-500.0,0.00010961,2]
[352842202,1739360950660,-500.0,0.00010961,2]
[352842203,1739360950686,-849.5,0.00010961,2]
[352842204,1739360950714,-500.0,0.00010961,2]
[352842205,1739360950742,-500.0,0.00010961,2]
[352842206,1739360950767,-500.0,0.00010962,2]
[352842207,1739360950792,-377.26628304,0.00010962,2]
[352842208,1739360950817,-500.0,0.00010962,2]
[352842209,1739360950843,-500.0,0.00010962,2]
[352842210,1739360950868,-500.0,0.00010962,2]
[352842211,1739360950892,-172.82,0.00010962,2]
[352842212,1739360950918,-500.0,0.00010962,2]
[352842213,1739360950944,-500.0,0.00010962,2]
[352842214,1739360950972,-540.3623479,0.00010962,2]
[352842215,1739360971095,-500.0,0.00010961,2]
[352842216,1739360971120,-500.0,0.00010961,2]
[352842217,1739360971144,-49.93708692,0.00010962,2]
[352842218,1739360971167,-628.24,0.00010962,2]
[352842219,1739360971190,-500.0,0.00010962,2]
[352842220,1739360971213,-500.0,0.00010962,2]
[352842221,1739360971236,-453.19226942,0.00010962,2]
[352842222,1739360971260,-500.0,0.00010962,2]
[352842223,1739360971283,-500.0,0.00010962,2]
[352842224,1739360971304,-500.0,0.00010962,2]
[352842225,1739360971326,-500.0,0.00010962,2]
[352842226,1739360971348,-500.0,0.00010962,2]
[352842227,1739360971372,-647.78,0.00010962,2]
[352842228,1739360971396,-500.0,0.00010962,2]
[352842229,1739360971419,-500.0,0.00010962,2]
[352842230,1739360971443,-780.13,0.00010962,2]
[352842231,1739360971466,-3405.76,0.00010962,2]
[352842232,1739360971488,-500.0,0.00010962,2]
[352842233,1739360971510,-500.0,0.00010962,2]
[352842234,1739360971532,-500.0,0.00010962,2]
[352842235,1739360971554,-3364.56892995,0.00010962,2]
[352842236,1739361032855,-500.0,0.00010961,2]
[352842237,1739361032866,-500.0,0.00010961,2]
[352842238,1739361032876,-500.0,0.00010961,2]
[352842239,1739361032886,-500.0,0.00010961,2]
[352842240,1739361032897,-300.0,0.00010961,2]
[352842241,1739361032906,-500.0,0.00010961,2]
[352842242,1739361032916,-500.0,0.00010961,2]
[352842243,1739361032926,-503.89976115,0.00010961,2]
[352842244,1739361032936,-500.0,0.00010961,2]
[352842245,1739361032946,-599.65,0.00010961,2]
[352842246,1739361032956,-4914.30107005,0.00010962,2]
[352842247,1739361032965,-500.0,0.00010962,2]
[352842248,1739361032974,-500.0,0.00010962,2]
[352842249,1739361032983,-500.0,0.00010962,2]
[352842250,1739361032993,-500.0,0.00010962,2]
[352842251,1739361033002,-3303.51,0.00010962,2]
[352842252,1739361033011,-500.0,0.00010962,2]
[352842253,1739361033021,-500.0,0.00010962,2]
[352842254,1739361033031,-500.0,0.00010963,2]
[352842255,1739361033040,-500.0,0.00010963,2]
[352842256,1739361033049,-500.0,0.00010963,2]
[352842257,1739361033058,-500.0,0.00010963,2]
[352842258,1739361033068,-500.0,0.00010963,2]
[352842259,1739361033078,-500.0,0.00010963,2]
[352842260,1739361033087,-500.0,0.00010963,2]
[352842261,1739361033096,-418.66492704,0.00010963,2]
[352842262,1739361033106,-500.0,0.00010963,2]
[352842263,1739361033115,-509.77496748,0.00010963,2]
[352842264,1739361033126,-500.0,0.00010963,2]
[352842265,1739361033135,-500.0,0.00010963,2]
[352842266,1739361033146,-502.32481971,0.00010963,2]
[352842267,1739361033156,-500.0,0.00010963,2]
[352842268,1739361033166,-500.0,0.00010963,2]
[352842269,1739361033175,-500.0,0.00010963,2]
[352842270,1739361033185,-500.0,0.00010963,2]
[352842271,1739361033195,-500.0,0.00011098,2]
[352842272,1739361033205,-500.0,0.00011098,2]
[352842273,1739361033215,-1211.58,0.00011098,2]
[352842274,1739361033224,-445.0,0.00011098,2]
[352842275,1739361033234,-500.0,0.00011098,2]
[352842276,1739361033243,-500.0,0.00011098,2]
[352842277,1739361033253,-778.94,0.00011098,2]
[352842278,1739361033262,-500.0,0.00011098,2]
[352842279,1739361033272,-500.0,0.00011098,2]
[352842280,1739361033282,-849.5,0.00011098,2]
[352842281,1739361033291,-500.0,0.00011098,2]
[352842282,1739361033301,-500.0,0.00011098,2]
[352842283,1739361033311,-500.0,0.00011098,2]
[352842284,1739361033320,-500.0,0.00011098,2]
[352842285,1739361033330,-500.0,0.00011098,2]
[352842286,1739361033340,-500.0,0.00011098,2]
[352842287,1739361033349,-500.0,0.00011098,2]
[352842288,1739361033359,-500.0,0.00011098,2]
[352842289,1739361033369,-500.0,0.00011098,2]
[352842290,1739361033379,-500.0,0.00011098,2]
[352842291,1739361033389,-500.0,0.00011099,2]
[352842292,1739361033398,-500.0,0.00011099,2]
[352842293,1739361033408,-500.0,0.00011099,2]
[352842294,1739361033419,-500.0,0.00011099,2]
[352842295,1739361033429,-500.0,0.00011099,2]
[352842296,1739361033440,-500.0,0.00011099,2]
[352842297,1739361033451,-500.0,0.00011099,2]
[352842298,1739361033461,-780.13,0.00011099,2]
[352842299,1739361033470,-3405.76,0.00011099,2]
[352842300,1739361033480,-500.0,0.00011099,2]
[352842301,1739361033490,-500.0,0.00011099,2]
[352842302,1739361033500,-8278.87,0.00011099,2]
[352842303,1739361033509,-500.0,0.00011099,2]
[352842304,1739361033519,-500.0,0.00011099,2]
[352842305,1739361033528,-500.0,0.00011099,2]
[352842306,1739361033538,-500.0,0.00011099,2]
[352842307,1739361033548,-3303.51,0.00011099,2]
[352842308,1739361033557,-500.0,0.00011099,2]
[352842309,1739361033566,-500.0,0.00011099,2]
[352842310,1739361033576,-500.0,0.000111,2]
[352842311,1739361033586,-500.0,0.00011235,2]
[352842312,1739361033597,-500.0,0.00011235,2]
[352842313,1739361033607,-1211.58,0.00011235,2]
[352842314,1739361033617,-578.92565395,0.00011235,2]
[352842315,1739361033627,-500.0,0.00011235,2]
[352842316,1739361033636,-778.94,0.00011235,2]
[352842317,1739361033646,-500.0,0.00011235,2]
[352842318,1739361033655,-500.0,0.00011235,2]
[352842319,1739361033665,-849.5,0.00011235,2]
[352842320,1739361033674,-500.0,0.00011235,2]
[352842321,1739361033685,-500.0,0.00011235,2]
[352842322,1739361033694,-500.0,0.00011235,2]
[352842323,1739361033704,-567.34,0.00011235,2]
[352842324,1739361033714,-500.0,0.00011235,2]
[352842325,1739361033724,-500.0,0.00011235,2]
[352842326,1739361033734,-500.0,0.00011235,2]
[352842327,1739361033743,-500.0,0.00011235,2]
[352842328,1739361033753,-564.71,0.00011235,2]
[352842329,1739361033762,-500.0,0.00011236,2]
[352842330,1739361033775,-500.0,0.00011236,2]
[352842331,1739361033785,-500.0,0.00011236,2]
[352842332,1739361033794,-500.0,0.00011236,2]
[352842333,1739361033804,-500.0,0.00011236,2]
[352842334,1739361033815,-500.0,0.00011236,2]
[352842335,1739361033825,-310.79190154,0.00011236,2]
[352842336,1739361033835,-780.13,0.00011236,2]
[352842337,1739361033846,-3405.76,0.00011236,2]
[352842338,1739361033855,-500.0,0.00011236,2]
[352842339,1739361033865,-500.0,0.00011236,2]
[352842340,1739361033874,-8278.87,0.00011236,2]
[352842341,1739361033884,-500.0,0.00011236,2]
[352842342,1739361033894,-500.0,0.00011236,2]
[352842343,1739361033903,-500.0,0.00011236,2]
[352842344,1739361033913,-500.0,0.00011236,2]
[352842345,1739361033924,-3303.51,0.00011236,2]
[352842346,1739361033934,-500.0,0.00011236,2]
[352842347,1739361033944,-500.0,0.00011236,2]
[352842348,1739361033954,-500.0,0.00011237,2]
[352842349,1739361033966,-355.16723555,0.00011372,2]
[352842350,1739361033975,-500.0,0.00011372,2]
[352842351,1739361033985,-1211.58,0.00011372,2]
[352842352,1739361033994,-778.94,0.00011372,2]
[352842353,1739361034003,-500.0,0.00011372,2]
[352842354,1739361034014,-500.0,0.00011372,2]
[352842355,1739361034024,-849.5,0.00011372,2]
[352842356,1739361034033,-500.0,0.00011372,2]
[352842357,1739361034043,-500.0,0.00011372,2]
[352842358,1739361034053,-158.26,0.00011372,2]
[352842359,1739361034063,-500.0,0.00011372,2]
[352842360,1739361034072,-500.0,0.00011373,2]
[352842361,1739361034082,-500.0,0.00011373,2]
[352842362,1739361034092,-500.0,0.00011373,2]
[352842363,1739361034102,-500.0,0.00011373,2]
[352842364,1739361034111,-500.0,0.00011373,2]
[352842365,1739361034121,-231.56000001,0.00011373,2]
[352842366,1739361034131,-780.13,0.00011373,2]
[352842367,1739361034140,-3405.76,0.00011373,2]
[352842368,1739361034149,-500.0,0.00011373,2]
[352842369,1739361034159,-8278.87,0.00011373,2]
[352842370,1739361034169,-500.0,0.00011373,2]
[352842371,1739361034179,-500.0,0.00011373,2]
[352842372,1739361034189,-567.25,0.00011373,2]
[352842373,1739361034199,-500.0,0.00011373,2]
[352842374,1739361034208,-3303.51,0.00011373,2]
[352842375,1739361034217,-500.0,0.00011373,2]
[352842376,1739361034227,-500.0,0.00011373,2]
[352842377,1739361034237,-173.70269213,0.0001141,2]
[352842378,1739361034247,-500.0,0.00011509,2]
[352842379,1739361034257,-1211.58,0.00011509,2]
[352842380,1739361034266,-778.94,0.00011509,2]
[352842381,1739361034276,-500.0,0.00011509,2]
[352842382,1739361034285,-500.0,0.00011509,2]
[352842383,1739361034295,-849.5,0.00011509,2]
[352842384,1739361034305,-500.0,0.00011509,2]
[352842385,1739361034315,-500.0,0.00011509,2]
[352842386,1739361034325,-500.0,0.0001151,2]
[352842387,1739361034335,-500.0,0.0001151,2]
[352842388,1739361034344,-500.0,0.0001151,2]
[352842389,1739361034354,-406.67128258,0.0001151,2]
[352842390,1739361034364,-500.0,0.0001151,2]
[352842391,1739361034374,-500.0,0.0001151,2]
[352842392,1739361034384,-500.0,0.0001151,2]
[352842393,1739361034394,-500.0,0.0001151,2]
[352842394,1739361034403,-500.0,0.0001151,2]
[352842395,1739361034413,-500.0,0.0001151,2]
[352842396,1739361034423,-500.0,0.0001151,2]
[352842397,1739361034433,-500.0,0.0001151,2]
[352842398,1739361034443,-500.0,0.0001151,2]
[352842399,1739361034453,-500.0,0.0001151,2]
[352842400,1739361034462,-500.0,0.0001151,2]
[352842401,1739361034471,-500.0,0.0001151,2]
[352842402,1739361034480,-500.0,0.0001151,2]
[352842403,1739361034490,-500.0,0.0001151,2]
[352842404,1739361034499,-500.0,0.0001151,2]
[352842405,1739361034508,-500.0,0.0001151,2]
[352842406,1739361034517,-500.0,0.0001151,2]
[352842407,1739361034527,-500.0,0.0001151,2]
[352842408,1739361034537,-500.0,0.0001151,2]
[352842409,1739361034547,-393.34371265,0.0001151,2]
[352842410,1739361034557,-500.0,0.0001151,2]
[352842411,1739361034568,-500.0,0.0001151,2]
[352842412,1739361034577,-500.0,0.0001151,2]
[352842413,1739361034587,-780.13,0.0001151,2]
[352842414,1739361034596,-3405.76,0.0001151,2]
[352842415,1739361034606,-251.52,0.0001151,2]
[352842416,1739361034615,-8278.87,0.0001151,2]
[352842417,1739361034625,-500.0,0.0001151,2]
[352842418,1739361034635,-500.0,0.0001151,2]
[352842419,1739361034644,-534.54110084,0.0001151,2]
[352842420,1739361034655,-3303.51,0.0001151,2]
[352842421,1739361034665,-500.0,0.0001151,2]
[352842422,1739361034676,-500.0,0.0001151,2]
[352842423,1739361034686,-500.0,0.00011646,2]
[352842424,1739361034820,-1211.58,0.00011646,2]
[352842425,1739361034831,-778.94,0.00011646,2]
[352842426,1739361034841,-206.29,0.00011646,2]
[352842427,1739361034850,-500.0,0.00011646,2]
[352842428,1739361034860,-849.5,0.00011646,2]
[352842429,1739361034870,-500.0,0.00011646,2]
[352842430,1739361034879,-500.0,0.00011646,2]
[352842431,1739361034889,-500.0,0.00011647,2]
[352842432,1739361034898,-500.0,0.00011647,2]
[352842433,1739361034908,-500.0,0.00011647,2]
[352842434,1739361034918,-500.0,0.00011647,2]
[352842435,1739361034928,-500.0,0.00011647,2]
[352842436,1739361034937,-500.0,0.00011647,2]
[352842437,1739361034947,-500.0,0.00011647,2]
[352842438,1739361034956,-500.0,0.00011647,2]
[352842439,1739361034965,-500.0,0.00011647,2]
[352842440,1739361034975,-500.0,0.00011647,2]
[352842441,1739361034984,-500.0,0.00011647,2]
[352842442,1739361034994,-780.13,0.00011647,2]
[352842443,1739361035004,-3405.76,0.00011647,2]
[352842444,1739361035015,-8278.87,0.00011647,2]
[352842445,1739361035025,-500.0,0.00011647,2]
[352842446,1739361035035,-3303.51,0.00011647,2]
[352842447,1739361035045,-500.0,0.00011647,2]
[352842448,1739361035055,-500.0,0.00011647,2]
[352842449,1739361035064,-814.73194712,0.00011767,2]
[352842450,1739361035075,-500.0,0.00011783,2]
[352842451,1739361035085,-1211.58,0.00011783,2]
[352842452,1739361035096,-778.94,0.00011783,2]
[352842453,1739361035107,-500.0,0.00011783,2]
[352842454,1739361035116,-849.5,0.00011783,2]
[352842455,1739361035126,-500.0,0.00011783,2]
[352842456,1739361035136,-500.0,0.00011783,2]
[352842457,1739361035146,-500.0,0.00011784,2]
[352842458,1739361035155,-500.0,0.00011784,2]
[352842459,1739361035165,-500.0,0.00011784,2]
[352842460,1739361035175,-500.0,0.00011784,2]
[352842461,1739361035185,-500.0,0.00011784,2]
[352842462,1739361035196,-298.25359222,0.00011784,2]
[352842463,1739361035206,-500.0,0.00011784,2]
[352842464,1739361035216,-500.0,0.00011784,2]
[352842465,1739361035225,-500.0,0.00011784,2]
[352842466,1739361035236,-500.0,0.00011784,2]
[352842467,1739361035246,-780.13,0.00011784,2]
[352842468,1739361035256,-3405.76,0.00011784,2]
[352842469,1739361035266,-8278.87,0.00011784,2]
[352842470,1739361035275,-500.0,0.00011784,2]
[352842471,1739361035286,-3303.51,0.00011784,2]
[352842472,1739361035295,-500.0,0.00011784,2]
[352842473,1739361035304,-392.0,0.00011784,2]
[352842474,1739361035314,-500.0,0.0001192,2]
[352842475,1739361035324,-1211.58,0.0001192,2]
[352842476,1739361035333,-778.94,0.0001192,2]
[352842477,1739361035343,-500.0,0.0001192,2]
[352842478,1739361035353,-849.5,0.0001192,2]
[352842479,1739361035363,-500.0,0.0001192,2]
[352842480,1739361035372,-623.49,0.0001192,2]
[352842481,1739361035381,-281.80556329,0.00011921,2]
[352842482,1739361035391,-476.86,0.00011921,2]
[352842483,1739361035401,-500.0,0.00011921,2]
[352842484,1739361035412,-500.0,0.00011921,2]
[352842485,1739361035423,-500.0,0.00011921,2]
[352842486,1739361035432,-780.13,0.00011921,2]
[352842487,1739361035442,-3405.76,0.00011921,2]
[352842488,1739361035450,-8278.87,0.00011921,2]
[352842489,1739361035460,-500.0,0.00011921,2]
[352842490,1739361035469,-3303.51,0.00011921,2]
[352842491,1739361035479,-500.0,0.00011921,2]
[352842492,1739361035488,-500.0,0.00012057,2]
[352842493,1739361035498,-1211.58,0.00012057,2]
[352842494,1739361035507,-778.94,0.00012057,2]
[352842495,1739361035516,-500.0,0.00012057,2]
[352842496,1739361035525,-849.5,0.00012057,2]
[352842497,1739361035535,-500.0,0.00012057,2]
[352842498,1739361035544,-603.53,0.00012058,2]
[352842499,1739361035554,-500.0,0.00012058,2]
[352842500,1739361035565,-780.13,0.00012058,2]
[352842501,1739361035574,-3405.76,0.00012058,2]
[352842502,1739361035583,-8278.87,0.00012058,2]
[352842503,1739361035593,-500.0,0.00012058,2]
[352842504,1739361035602,-3303.51,0.00012058,2]
[352842505,1739361035611,-618.27087125,0.00012058,2]
[352842506,1739361035621,-421.13919105,0.00012131,2]
[352842507,1739361035630,-500.0,0.00012145,2]
[352842508,1739361035640,-500.0,0.00012145,2]
[352842509,1739361035649,-500.0,0.00012145,2]
[352842510,1739361035658,-500.0,0.00012194,2]
[352842511,1739361035667,-1211.58,0.00012194,2]
[352842512,1739361035676,-778.94,0.00012194,2]
[352842513,1739361035687,-500.0,0.00012194,2]
[352842514,1739361035696,-849.5,0.00012194,2]
[352842515,1739361035706,-500.0,0.00012194,2]
[352842516,1739361035715,-500.0,0.00012195,2]
[352842517,1739361035725,-780.13,0.00012195,2]
[352842518,1739361035734,-3405.76,0.00012195,2]
[352842519,1739361035744,-8278.87,0.00012195,2]
[352842520,1739361035754,-500.0,0.00012195,2]
[352842521,1739361035765,-3303.51,0.00012195,2]
[352842522,1739361035779,-500.0,0.00012331,2]
[352842523,1739361035788,-1211.58,0.00012331,2]
[352842524,1739361035798,-778.94,0.00012331,2]
[352842525,1739361035810,-500.0,0.00012331,2]